[Event "Titled Tuesday Blitz March 14 Early 2023"]
[White "Karttunen, Mika"]
[Black "Coelho, Ramyres Santana"]
[WhiteFideId "502081"]
[BlackFideId "2120690"]
[WhiteElo "2396"]
[BlackElo "1888"]
[Result "1-0"]
[Round "02"]
[TimeControl "180+2"]
[Date "2023.03.14"]
[WhiteClock "0:00:07"]
[BlackClock "0:00:03"]

1. d4 {[%clk 0:03:00]}  Nf6 {[%clk 0:02:59]} 2. c4 {[%clk 0:03:00]}  g6 {[%clk 0:02:59]} 3. Nc3 {[%clk 0:03:00]}  d5 {[%clk 0:02:59]} 4. cxd5 {[%clk 0:02:59]}  Nxd5 {[%clk 0:03:00]} 5. e4 {[%clk 0:02:59]}  Nxc3 {[%clk 0:03:00]} 6. bxc3 {[%clk 0:03:00]}  Bg7 {[%clk 0:03:01]} 7. Be3 {[%clk 0:03:00]}  O-O {[%clk 0:03:02]} 8. Qd2 {[%clk 0:03:00]}  c5 {[%clk 0:03:03]} 9. Nf3 {[%clk 0:03:00]}  cxd4 {[%clk 0:03:04]} 10. cxd4 {[%clk 0:03:00]}  Nc6 {[%clk 0:03:04]} 11. Rd1 {[%clk 0:02:59]}  Bg4 {[%clk 0:03:04]} 12. d5 {[%clk 0:02:47]}  Bxf3 {[%clk 0:03:01]} 13. gxf3 {[%clk 0:02:47]}  Ne5 {[%clk 0:02:59]} 14. Be2 {[%clk 0:02:46]}  Rc8 {[%clk 0:02:57]} 15. O-O {[%clk 0:02:06]}  Qd7 {[%clk 0:02:41]} 16. Kg2 {[%clk 0:01:53]}  Nc4 {[%clk 0:02:36]} 17. Bxc4 {[%clk 0:01:51]}  Rxc4 {[%clk 0:02:37]} 18. h3 {[%clk 0:01:21]}  f5 {[%clk 0:02:28]} 19. d6 {[%clk 0:00:50]}  fxe4 {[%clk 0:02:02]} 20. Qd5+ {[%clk 0:00:46]}  Kh8 {[%clk 0:02:02]} 21. f4 {[%clk 0:00:46]}  Rc6 {[%clk 0:01:38]} 22. Qxe4 {[%clk 0:00:38]}  exd6 {[%clk 0:01:32]} 23. Rd5 {[%clk 0:00:34]}  Re8 {[%clk 0:01:30]} 24. Qd3 {[%clk 0:00:34]}  Rc3 {[%clk 0:01:16]} 25. Qb5 {[%clk 0:00:34]}  Qe7 {[%clk 0:01:11]} 26. Rfd1 {[%clk 0:00:23]}  Qe4+ {[%clk 0:01:09]} 27. Kh2 {[%clk 0:00:21]}  Rxe3 {[%clk 0:01:02]} 28. fxe3 {[%clk 0:00:21]}  Qxe3 {[%clk 0:01:02]} 29. Qf1 {[%clk 0:00:14]}  Bh6 {[%clk 0:00:59]} 30. R5d4 {[%clk 0:00:10]}  Rf8 {[%clk 0:00:55]} 31. R1d3 {[%clk 0:00:10]}  Qe6 {[%clk 0:00:50]} 32. Rf3 {[%clk 0:00:08]}  Qxa2+ {[%clk 0:00:50]} 33. Kh1 {[%clk 0:00:08]}  Qe6 {[%clk 0:00:50]} 34. Qd3 {[%clk 0:00:06]}  Qe1+ {[%clk 0:00:49]} 35. Rf1 {[%clk 0:00:06]}  Qh4 {[%clk 0:00:48]} 36. f5 {[%clk 0:00:06]}  Qf6 {[%clk 0:00:37]} 37. Rxd6 {[%clk 0:00:05]}  Qf7 {[%clk 0:00:30]} 38. f6 {[%clk 0:00:05]}  b6 {[%clk 0:00:26]} 39. Rd7 {[%clk 0:00:05]}  Qe6 {[%clk 0:00:24]} 40. f7 {[%clk 0:00:06]}  Qc6+ {[%clk 0:00:24]} 41. Qd5 {[%clk 0:00:06]}  Qc3 {[%clk 0:00:16]} 42. Qf3 {[%clk 0:00:05]}  Qc4 {[%clk 0:00:13]} 43. Qf6+ {[%clk 0:00:06]}  Bg7 {[%clk 0:00:13]} 44. Qf3 {[%clk 0:00:06]}  Qb5 {[%clk 0:00:11]} 45. Rxa7 {[%clk 0:00:06]}  Qc4 {[%clk 0:00:05]} 46. Ra8 {[%clk 0:00:06]}  Qc5 {[%clk 0:00:05]} 47. Rxf8+ {[%clk 0:00:06]}  Qxf8 {[%clk 0:00:05]} 48. Qd5 {[%clk 0:00:05]}  h5 {[%clk 0:00:05]} 49. Re1 {[%clk 0:00:06]}  Qb4 {[%clk 0:00:03]} 50. Re8+ {[%clk 0:00:06]}  Kh7 {[%clk 0:00:03]} 51. Qf3 {[%clk 0:00:05]}  Qb1+ {[%clk 0:00:03]} 52. Kg2 {[%clk 0:00:05]}  Qb2+ {[%clk 0:00:03]} 53. Re2 {[%clk 0:00:06]}  Qe5 {[%clk 0:00:03]} 54. Rxe5 {[%clk 0:00:06]}  Bxe5 {[%clk 0:00:03]} 55. f8=Q {[%clk 0:00:06]}  g5 {[%clk 0:00:03]} 56. Q3f7+ {[%clk 0:00:06]}  Bg7 {[%clk 0:00:03]} 57. Q8xg7# {[%clk 0:00:07]} 1-0


[Site "https://www.chess.com"]

[Event "Titled Tuesday Blitz March 14 Early 2023"]
[White "Rostomyan, Mikayel"]
[Black "Sokac, Marko"]
[WhiteFideId "13313754"]
[BlackFideId "14531356"]
[WhiteElo "2009"]
[BlackElo "2355"]
[Result "0-1"]
[Round "02"]
[TimeControl "180+2"]
[Date "2023.03.14"]
[WhiteClock "0:00:03"]
[BlackClock "0:00:16"]

1. e4 {[%clk 0:02:57]}  d6 {[%clk 0:03:00]} 2. d4 {[%clk 0:02:57]}  Nf6 {[%clk 0:03:00]} 3. Nc3 {[%clk 0:02:57]}  c6 {[%clk 0:03:01]} 4. Nf3 {[%clk 0:02:58]}  Bg4 {[%clk 0:03:01]} 5. Be2 {[%clk 0:02:58]}  e6 {[%clk 0:03:01]} 6. O-O {[%clk 0:02:58]}  Be7 {[%clk 0:03:02]} 7. a4 {[%clk 0:02:57]}  d5 {[%clk 0:03:02]} 8. exd5 {[%clk 0:02:53]}  cxd5 {[%clk 0:03:02]} 9. h3 {[%clk 0:02:53]}  Bxf3 {[%clk 0:03:01]} 10. Bxf3 {[%clk 0:02:53]}  Nc6 {[%clk 0:03:01]} 11. Ne2 {[%clk 0:02:46]}  O-O {[%clk 0:03:01]} 12. Be3 {[%clk 0:02:43]}  Rc8 {[%clk 0:02:59]} 13. c3 {[%clk 0:02:43]}  Bd6 {[%clk 0:02:58]} 14. Bf4 {[%clk 0:02:37]}  Bxf4 {[%clk 0:02:51]} 15. Nxf4 {[%clk 0:02:38]}  Qd6 {[%clk 0:02:51]} 16. Nd3 {[%clk 0:02:24]}  Nd7 {[%clk 0:02:50]} 17. Re1 {[%clk 0:02:21]}  Rfe8 {[%clk 0:02:49]} 18. g3 {[%clk 0:01:59]}  f6 {[%clk 0:02:49]} 19. Nf4 {[%clk 0:01:54]}  Nf8 {[%clk 0:02:42]} 20. Kg2 {[%clk 0:01:49]}  Rcd8 {[%clk 0:02:38]} 21. Qd2 {[%clk 0:01:14]}  Ne7 {[%clk 0:02:37]} 22. Re2 {[%clk 0:01:07]}  e5 {[%clk 0:02:34]} 23. dxe5 {[%clk 0:00:55]}  fxe5 {[%clk 0:02:35]} 24. Nxd5 {[%clk 0:00:50]}  Nxd5 {[%clk 0:02:31]} 25. Rd1 {[%clk 0:00:51]}  e4 {[%clk 0:02:20]} 26. Bxe4 {[%clk 0:00:35]}  Rxe4 {[%clk 0:02:17]} 27. Rxe4 {[%clk 0:00:36]}  Ne3+ {[%clk 0:02:12]} 28. Qxe3 {[%clk 0:00:29]}  Qxd1 {[%clk 0:02:12]} 29. Re7 {[%clk 0:00:28]}  Rd7 {[%clk 0:01:44]} 30. Rxd7 {[%clk 0:00:25]}  Qxd7 {[%clk 0:01:42]} 31. Qxa7 {[%clk 0:00:25]}  Ne6 {[%clk 0:01:31]} 32. Qb8+ {[%clk 0:00:22]}  Kf7 {[%clk 0:01:31]} 33. Qe5 {[%clk 0:00:23]}  Qxa4 {[%clk 0:01:21]} 34. Qf5+ {[%clk 0:00:22]}  Ke7 {[%clk 0:01:22]} 35. Qxh7 {[%clk 0:00:21]}  Qc6+ {[%clk 0:01:16]} 36. Kh2 {[%clk 0:00:21]}  Qf3 {[%clk 0:01:13]} 37. Kg1 {[%clk 0:00:18]}  Qd1+ {[%clk 0:00:58]} 38. Kh2 {[%clk 0:00:17]}  Qd2 {[%clk 0:00:58]} 39. Qh4+ {[%clk 0:00:14]}  Kd7 {[%clk 0:00:45]} 40. Qa4+ {[%clk 0:00:14]}  Ke7 {[%clk 0:00:40]} 41. Qb4+ {[%clk 0:00:14]}  Kf6 {[%clk 0:00:39]} 42. Kg1 {[%clk 0:00:12]}  Qd1+ {[%clk 0:00:36]} 43. Kh2 {[%clk 0:00:11]}  Qd5 {[%clk 0:00:36]} 44. h4 {[%clk 0:00:10]}  Qf3 {[%clk 0:00:30]} 45. Kg1 {[%clk 0:00:09]}  Qd1+ {[%clk 0:00:29]} 46. Kh2 {[%clk 0:00:09]}  Qd5 {[%clk 0:00:29]} 47. c4 {[%clk 0:00:07]}  Qf3 {[%clk 0:00:28]} 48. Kg1 {[%clk 0:00:07]}  Ke5 {[%clk 0:00:22]} 49. Qb5+ {[%clk 0:00:05]}  Kd4 {[%clk 0:00:22]} 50. Qd7+ {[%clk 0:00:04]}  Ke5 {[%clk 0:00:21]} 51. Qb5+ {[%clk 0:00:05]}  Kf6 {[%clk 0:00:20]} 52. c5 {[%clk 0:00:04]}  Qd1+ {[%clk 0:00:20]} 53. Kh2 {[%clk 0:00:04]}  Qd5 {[%clk 0:00:20]} 54. Qb4 {[%clk 0:00:04]}  Nd4 {[%clk 0:00:18]} 55. Qb6+ {[%clk 0:00:03]}  Kf5 {[%clk 0:00:17]} 56. Qc7 {[%clk 0:00:02]}  Nf3+ {[%clk 0:00:17]} 57. Kh3 {[%clk 0:00:03]}  Ng5+ {[%clk 0:00:16]} 58. hxg5 {[%clk 0:00:03]}  Qh1# {[%clk 0:00:16]} 0-1


[Site "https://www.chess.com"]

[Event "Titled Tuesday Blitz March 14 Early 2023"]
[White "Tokhirjonova, Gulrukhbegim"]
[Black "Buscar, Michael"]
[WhiteFideId "14203626"]
[BlackFideId "2603616"]
[WhiteElo "2268"]
[BlackElo "2010"]
[Result "1-0"]
[Round "02"]
[TimeControl "180+2"]
[Date "2023.03.14"]
[WhiteClock "0:02:04"]
[BlackClock "0:01:31"]

1. e4 {[%clk 0:02:55]}  c5 {[%clk 0:02:58]} 2. Nf3 {[%clk 0:02:55]}  Nc6 {[%clk 0:02:58]} 3. Nc3 {[%clk 0:02:55]}  Nf6 {[%clk 0:02:58]} 4. Bc4 {[%clk 0:02:55]}  Nxe4 {[%clk 0:02:53]} 5. Bxf7+ {[%clk 0:02:51]}  Kxf7 {[%clk 0:02:54]} 6. Nxe4 {[%clk 0:02:50]}  d5 {[%clk 0:02:48]} 7. Nxc5 {[%clk 0:02:49]}  e5 {[%clk 0:02:47]} 8. Nb3 {[%clk 0:02:47]}  Bg4 {[%clk 0:02:47]} 9. h3 {[%clk 0:02:46]}  Bh5 {[%clk 0:02:47]} 10. g4 {[%clk 0:02:43]}  Bg6 {[%clk 0:02:44]} 11. d4 {[%clk 0:02:43]}  e4 {[%clk 0:02:26]} 12. Ne5+ {[%clk 0:02:35]}  Nxe5 {[%clk 0:02:20]} 13. dxe5 {[%clk 0:02:36]}  h5 {[%clk 0:02:04]} 14. Be3 {[%clk 0:02:29]}  hxg4 {[%clk 0:01:50]} 15. Qxg4 {[%clk 0:02:27]}  Qc8 {[%clk 0:01:51]} 16. Qf4+ {[%clk 0:02:20]}  Qf5 {[%clk 0:01:50]} 17. O-O-O {[%clk 0:02:08]}  Qxf4 {[%clk 0:01:38]} 18. Bxf4 {[%clk 0:02:09]}  Rd8 {[%clk 0:01:38]} 19. Rhg1 {[%clk 0:02:08]}  Rxh3 {[%clk 0:01:31]} 20. e6+ {[%clk 0:02:04]} 1-0


[Site "https://www.chess.com"]

[Event "Titled Tuesday Blitz March 14 Early 2023"]
[White "Jiganchine, Roman"]
[Black "Safin, Robert"]
[WhiteFideId "2603667"]
[BlackFideId "34189120"]
[WhiteElo "2314"]
[BlackElo "2245"]
[Result "0-1"]
[Round "02"]
[TimeControl "180+2"]
[Date "2023.03.14"]
[WhiteClock "0:00:05"]
[BlackClock "0:00:24"]

1. e4 {[%clk 0:02:59]}  c6 {[%clk 0:03:00]} 2. d4 {[%clk 0:02:58]}  d5 {[%clk 0:03:00]} 3. exd5 {[%clk 0:02:58]}  cxd5 {[%clk 0:03:00]} 4. Nf3 {[%clk 0:02:58]}  Nc6 {[%clk 0:02:58]} 5. c4 {[%clk 0:02:56]}  Nf6 {[%clk 0:02:52]} 6. Nc3 {[%clk 0:02:55]}  e6 {[%clk 0:02:50]} 7. cxd5 {[%clk 0:02:54]}  Nxd5 {[%clk 0:02:48]} 8. Bd3 {[%clk 0:02:53]}  Be7 {[%clk 0:02:42]} 9. O-O {[%clk 0:02:53]}  O-O {[%clk 0:02:42]} 10. Re1 {[%clk 0:02:53]}  Nf6 {[%clk 0:02:38]} 11. a3 {[%clk 0:02:51]}  b6 {[%clk 0:02:36]} 12. Bc2 {[%clk 0:02:41]}  Bb7 {[%clk 0:02:36]} 13. Qd3 {[%clk 0:02:40]}  g6 {[%clk 0:02:17]} 14. Bh6 {[%clk 0:02:36]}  Re8 {[%clk 0:02:16]} 15. Rad1 {[%clk 0:02:29]}  Rc8 {[%clk 0:02:04]} 16. Ba4 {[%clk 0:02:06]}  a6 {[%clk 0:01:55]} 17. h3 {[%clk 0:01:52]}  b5 {[%clk 0:01:48]} 18. Bc2 {[%clk 0:01:16]}  b4 {[%clk 0:01:47]} 19. Na4 {[%clk 0:00:46]}  Nd5 {[%clk 0:01:30]} 20. Nc5 {[%clk 0:00:42]}  Qb6 {[%clk 0:01:12]} 21. Nxe6 {[%clk 0:00:32]}  fxe6 {[%clk 0:01:09]} 22. Rxe6 {[%clk 0:00:32]}  Bf6 {[%clk 0:01:03]} 23. Rde1 {[%clk 0:00:19]}  Rxe6 {[%clk 0:00:55]} 24. Rxe6 {[%clk 0:00:20]}  Qd8 {[%clk 0:00:56]} 25. Bb3 {[%clk 0:00:20]}  Na5 {[%clk 0:00:51]} 26. Rxf6 {[%clk 0:00:12]}  Qxf6 {[%clk 0:00:45]} 27. Ne5 {[%clk 0:00:06]}  Nxb3 {[%clk 0:00:24]} 28. Qxb3 {[%clk 0:00:05]}  g5 {[%clk 0:00:25]} 29. axb4 {[%clk 0:00:05]}  Qxh6 {[%clk 0:00:24]} 0-1


[Site "https://www.chess.com"]

[Event "Titled Tuesday Blitz March 14 Early 2023"]
[White "Asavasaetakul, Chawit"]
[Black "Perez Rodriguez, Jennifer"]
[WhiteFideId "6204856"]
[BlackFideId "3507831"]
[WhiteElo "1919"]
[BlackElo "2170"]
[Result "0-1"]
[Round "02"]
[TimeControl "180+2"]
[Date "2023.03.14"]
[WhiteClock "0:00:15"]
[BlackClock "0:00:28"]

1. e4 {[%clk 0:03:00]}  e5 {[%clk 0:02:58]} 2. Nf3 {[%clk 0:03:00]}  Nc6 {[%clk 0:02:59]} 3. Bc4 {[%clk 0:02:59]}  Bc5 {[%clk 0:02:58]} 4. c3 {[%clk 0:02:58]}  Nf6 {[%clk 0:02:58]} 5. d4 {[%clk 0:02:59]}  exd4 {[%clk 0:02:57]} 6. cxd4 {[%clk 0:03:00]}  Bb4+ {[%clk 0:02:56]} 7. Nc3 {[%clk 0:03:00]}  Nxe4 {[%clk 0:02:46]} 8. O-O {[%clk 0:03:00]}  Bxc3 {[%clk 0:02:44]} 9. d5 {[%clk 0:03:00]}  Bf6 {[%clk 0:02:27]} 10. Re1 {[%clk 0:03:00]}  O-O {[%clk 0:02:22]} 11. Rxe4 {[%clk 0:03:00]}  Ne7 {[%clk 0:02:17]} 12. d6 {[%clk 0:02:59]}  cxd6 {[%clk 0:02:13]} 13. Qxd6 {[%clk 0:02:53]}  Nf5 {[%clk 0:02:12]} 14. Qd5 {[%clk 0:02:53]}  d6 {[%clk 0:02:09]} 15. Ng5 {[%clk 0:02:49]}  Nh6 {[%clk 0:01:50]} 16. Bf4 {[%clk 0:02:32]}  Bf5 {[%clk 0:01:47]} 17. Nxf7 {[%clk 0:02:22]}  Rxf7 {[%clk 0:01:46]} 18. Bxh6 {[%clk 0:02:19]}  Bxe4 {[%clk 0:01:40]} 19. Qxf7+ {[%clk 0:02:11]}  Kh8 {[%clk 0:01:39]} 20. Bf4 {[%clk 0:01:46]}  d5 {[%clk 0:01:38]} 21. Bb3 {[%clk 0:01:46]}  Bxb2 {[%clk 0:01:30]} 22. Rd1 {[%clk 0:01:46]}  Qf6 {[%clk 0:01:28]} 23. Qxb7 {[%clk 0:01:34]}  Rf8 {[%clk 0:01:24]} 24. Be3 {[%clk 0:01:34]}  Qg6 {[%clk 0:01:17]} 25. g3 {[%clk 0:00:58]}  Qh5 {[%clk 0:01:02]} 26. Rxd5 {[%clk 0:00:44]}  Bxd5 {[%clk 0:00:59]} 27. Qxd5 {[%clk 0:00:42]}  Qxd5 {[%clk 0:00:57]} 28. Bxd5 {[%clk 0:00:42]}  a5 {[%clk 0:00:58]} 29. Kg2 {[%clk 0:00:40]}  a4 {[%clk 0:00:57]} 30. Bc6 {[%clk 0:00:39]}  a3 {[%clk 0:00:57]} 31. Bd5 {[%clk 0:00:39]}  Rd8 {[%clk 0:00:52]} 32. Bb3 {[%clk 0:00:34]}  Bd4 {[%clk 0:00:44]} 33. Kf3 {[%clk 0:00:33]}  Bxe3 {[%clk 0:00:43]} 34. fxe3 {[%clk 0:00:33]}  g6 {[%clk 0:00:43]} 35. Bc4 {[%clk 0:00:30]}  Kg7 {[%clk 0:00:43]} 36. e4 {[%clk 0:00:29]}  Rd2 {[%clk 0:00:42]} 37. h4 {[%clk 0:00:29]}  Kf6 {[%clk 0:00:42]} 38. Kf4 {[%clk 0:00:24]}  Rf2+ {[%clk 0:00:39]} 39. Ke3 {[%clk 0:00:24]}  Rc2 {[%clk 0:00:39]} 40. Bg8 {[%clk 0:00:23]}  Ke5 {[%clk 0:00:35]} 41. Kd3 {[%clk 0:00:20]}  Rg2 {[%clk 0:00:32]} 42. Kc4 {[%clk 0:00:15]}  Rxa2 {[%clk 0:00:32]} 43. Bxh7 {[%clk 0:00:15]}  Rc2+ {[%clk 0:00:29]} 44. Kb3 {[%clk 0:00:15]}  a2 {[%clk 0:00:29]} 45. Kxc2 {[%clk 0:00:15]}  a1=Q {[%clk 0:00:29]} 46. Bxg6 {[%clk 0:00:15]}  Qd4 {[%clk 0:00:27]} 47. Bf5 {[%clk 0:00:15]}  Qf2+ {[%clk 0:00:27]} 48. Kd3 {[%clk 0:00:15]}  Qxg3+ {[%clk 0:00:28]} 0-1


[Site "https://www.chess.com"]

[Event "Titled Tuesday Blitz March 14 Early 2023"]
[White "Sovetbekova, Nurai"]
[Black "Ginzburg, Yakov"]
[WhiteFideId "13801910"]
[BlackFideId "4157176"]
[WhiteElo "1857"]
[BlackElo "2305"]
[Result "1-0"]
[Round "02"]
[TimeControl "180+2"]
[Date "2023.03.14"]
[WhiteClock "0:00:10"]
[BlackClock "0:00:17"]

1. d4 {[%clk 0:03:00]}  d5 {[%clk 0:02:58]} 2. c4 {[%clk 0:03:00]}  c6 {[%clk 0:02:58]} 3. Nf3 {[%clk 0:03:00]}  Nf6 {[%clk 0:02:58]} 4. g3 {[%clk 0:02:58]}  g6 {[%clk 0:02:56]} 5. Qa4 {[%clk 0:02:43]}  Nbd7 {[%clk 0:02:42]} 6. cxd5 {[%clk 0:02:42]}  cxd5 {[%clk 0:02:42]} 7. Bg2 {[%clk 0:02:39]}  Bg7 {[%clk 0:02:41]} 8. O-O {[%clk 0:02:38]}  O-O {[%clk 0:02:42]} 9. Nc3 {[%clk 0:02:37]}  Nb6 {[%clk 0:02:42]} 10. Qb3 {[%clk 0:02:35]}  Ne4 {[%clk 0:02:32]} 11. Bf4 {[%clk 0:02:04]}  Bf5 {[%clk 0:02:27]} 12. Rac1 {[%clk 0:01:54]}  Rc8 {[%clk 0:02:24]} 13. Nb5 {[%clk 0:01:51]}  Nc4 {[%clk 0:01:44]} 14. Nxa7 {[%clk 0:01:36]}  Ra8 {[%clk 0:01:40]} 15. Nb5 {[%clk 0:01:33]}  Qa5 {[%clk 0:01:31]} 16. a3 {[%clk 0:01:07]}  Rfc8 {[%clk 0:01:30]} 17. Nc3 {[%clk 0:00:51]}  Nxc3 {[%clk 0:01:12]} 18. Rxc3 {[%clk 0:00:43]}  Be4 {[%clk 0:01:11]} 19. Rfc1 {[%clk 0:00:39]}  Bxf3 {[%clk 0:01:01]} 20. Bxf3 {[%clk 0:00:37]}  Bxd4 {[%clk 0:01:01]} 21. R3c2 {[%clk 0:00:19]}  e5 {[%clk 0:01:01]} 22. Bd2 {[%clk 0:00:16]}  Qc5 {[%clk 0:00:30]} 23. e3 {[%clk 0:00:10]}  Nxd2 {[%clk 0:00:29]} 24. Rxc5 {[%clk 0:00:09]}  Nxb3 {[%clk 0:00:29]} 25. Rxc8+ {[%clk 0:00:09]}  Rxc8 {[%clk 0:00:23]} 26. Rxc8+ {[%clk 0:00:09]}  Kg7 {[%clk 0:00:24]} 27. exd4 {[%clk 0:00:10]}  e4 {[%clk 0:00:24]} 28. Bd1 {[%clk 0:00:09]}  Nxd4 {[%clk 0:00:24]} 29. Rd8 {[%clk 0:00:09]}  f5 {[%clk 0:00:23]} 30. Rxd5 {[%clk 0:00:08]}  Ne6 {[%clk 0:00:22]} 31. Rd7+ {[%clk 0:00:08]}  Kf6 {[%clk 0:00:22]} 32. Rxb7 {[%clk 0:00:08]}  Ke5 {[%clk 0:00:22]} 33. Kf1 {[%clk 0:00:08]}  Kd4 {[%clk 0:00:22]} 34. Ke2 {[%clk 0:00:08]}  g5 {[%clk 0:00:22]} 35. Rxh7 {[%clk 0:00:08]}  f4 {[%clk 0:00:22]} 36. Rd7+ {[%clk 0:00:07]}  Kc5 {[%clk 0:00:22]} 37. Kd2 {[%clk 0:00:06]}  Kc6 {[%clk 0:00:18]} 38. Re7 {[%clk 0:00:05]}  Nc5 {[%clk 0:00:17]} 39. Kc3 {[%clk 0:00:03]}  Kd6 {[%clk 0:00:17]} 40. Rg7 {[%clk 0:00:04]}  Ne6 {[%clk 0:00:16]} 41. Rg6 {[%clk 0:00:04]}  Ke5 {[%clk 0:00:15]} 42. Rxe6+ {[%clk 0:00:05]}  Kxe6 {[%clk 0:00:16]} 43. gxf4 {[%clk 0:00:06]}  gxf4 {[%clk 0:00:16]} 44. Kd4 {[%clk 0:00:07]}  Kf5 {[%clk 0:00:16]} 45. Bc2 {[%clk 0:00:07]}  f3 {[%clk 0:00:15]} 46. Bxe4+ {[%clk 0:00:07]}  Kf4 {[%clk 0:00:16]} 47. Bxf3 {[%clk 0:00:08]}  Kxf3 {[%clk 0:00:17]} 48. a4 {[%clk 0:00:09]}  Kxf2 {[%clk 0:00:17]} 49. a5 {[%clk 0:00:10]} 1-0


[Site "https://www.chess.com"]

[Event "Titled Tuesday Blitz March 14 Early 2023"]
[White "Riff, Vincent"]
[Black "Levitan, Caleb Levi"]
[WhiteFideId "617776"]
[BlackFideId "14332620"]
[WhiteElo "2369"]
[BlackElo "1963"]
[Result "1-0"]
[Round "02"]
[TimeControl "180+2"]
[Date "2023.03.14"]
[WhiteClock "0:01:22"]
[BlackClock "0:00:13"]

1. e4 {[%clk 0:03:00]}  b6 {[%clk 0:02:56]} 2. d4 {[%clk 0:03:00]}  Bb7 {[%clk 0:02:57]} 3. Bd3 {[%clk 0:03:00]}  d5 {[%clk 0:02:53]} 4. e5 {[%clk 0:02:54]}  c5 {[%clk 0:02:53]} 5. e6 {[%clk 0:02:54]}  fxe6 {[%clk 0:02:38]} 6. c3 {[%clk 0:02:51]}  Nf6 {[%clk 0:02:35]} 7. Nf3 {[%clk 0:02:51]}  g6 {[%clk 0:02:32]} 8. h4 {[%clk 0:02:50]}  Bg7 {[%clk 0:02:30]} 9. Ne5 {[%clk 0:02:50]}  Nc6 {[%clk 0:02:24]} 10. h5 {[%clk 0:02:49]}  Nxe5 {[%clk 0:02:07]} 11. dxe5 {[%clk 0:02:43]}  Nxh5 {[%clk 0:02:07]} 12. Rxh5 {[%clk 0:02:30]}  gxh5 {[%clk 0:02:05]} 13. Bb5+ {[%clk 0:02:29]}  Kf8 {[%clk 0:01:56]} 14. Qxh5 {[%clk 0:02:29]}  a6 {[%clk 0:01:51]} 15. Be2 {[%clk 0:02:25]}  Qe8 {[%clk 0:01:48]} 16. Qh3 {[%clk 0:02:24]}  Qg6 {[%clk 0:01:37]} 17. f4 {[%clk 0:02:05]}  d4 {[%clk 0:01:24]} 18. g4 {[%clk 0:01:55]}  Qe4 {[%clk 0:01:15]} 19. Nd2 {[%clk 0:01:53]}  Qh1+ {[%clk 0:01:11]} 20. Qxh1 {[%clk 0:01:53]}  Bxh1 {[%clk 0:01:12]} 21. cxd4 {[%clk 0:01:43]}  cxd4 {[%clk 0:01:11]} 22. Nb3 {[%clk 0:01:41]}  Rd8 {[%clk 0:01:00]} 23. Bxa6 {[%clk 0:01:41]}  Bf3 {[%clk 0:00:54]} 24. g5 {[%clk 0:01:35]}  h6 {[%clk 0:00:54]} 25. Kf2 {[%clk 0:01:34]}  Be4 {[%clk 0:00:49]} 26. g6 {[%clk 0:01:29]}  Bxg6 {[%clk 0:00:45]} 27. Bd2 {[%clk 0:01:29]}  Bc2 {[%clk 0:00:37]} 28. Bc4 {[%clk 0:01:25]}  Bxb3 {[%clk 0:00:34]} 29. axb3 {[%clk 0:01:24]}  Kf7 {[%clk 0:00:31]} 30. f5 {[%clk 0:01:23]}  Bxe5 {[%clk 0:00:29]} 31. Bxe6+ {[%clk 0:01:24]}  Kf6 {[%clk 0:00:29]} 32. Rg1 {[%clk 0:01:23]}  Bd6 {[%clk 0:00:18]} 33. Kf3 {[%clk 0:01:23]}  Bc5 {[%clk 0:00:12]} 34. Rg6+ {[%clk 0:01:21]}  Ke5 {[%clk 0:00:13]} 35. Bf4# {[%clk 0:01:22]} 1-0


[Site "https://www.chess.com"]

[Event "Titled Tuesday Blitz March 14 Early 2023"]
[White "Taboas Rodriguez, Daniel"]
[Black "Smith, Garrett L"]
[WhiteFideId "2208466"]
[BlackFideId "2024829"]
[WhiteElo "2365"]
[BlackElo "2267"]
[Result "1-0"]
[Round "02"]
[TimeControl "180+2"]
[Date "2023.03.14"]
[WhiteClock "0:01:24"]
[BlackClock "0:00:28"]

1. d4 {[%clk 0:03:00]}  Nf6 {[%clk 0:02:58]} 2. Nf3 {[%clk 0:03:01]}  g6 {[%clk 0:02:59]} 3. c4 {[%clk 0:03:02]}  Bg7 {[%clk 0:02:59]} 4. Nc3 {[%clk 0:03:03]}  d5 {[%clk 0:02:59]} 5. cxd5 {[%clk 0:03:04]}  Nxd5 {[%clk 0:02:59]} 6. e4 {[%clk 0:03:04]}  Nxc3 {[%clk 0:03:00]} 7. bxc3 {[%clk 0:03:05]}  c5 {[%clk 0:02:59]} 8. Be3 {[%clk 0:03:05]}  O-O {[%clk 0:02:57]} 9. Be2 {[%clk 0:03:04]}  Qa5 {[%clk 0:02:50]} 10. O-O {[%clk 0:03:04]}  Nd7 {[%clk 0:02:45]} 11. Qb3 {[%clk 0:03:03]}  Nf6 {[%clk 0:02:33]} 12. Bd3 {[%clk 0:02:59]}  b6 {[%clk 0:02:29]} 13. e5 {[%clk 0:02:54]}  Be6 {[%clk 0:02:25]} 14. c4 {[%clk 0:02:51]}  Ng4 {[%clk 0:02:17]} 15. d5 {[%clk 0:02:51]}  Nxe3 {[%clk 0:02:14]} 16. fxe3 {[%clk 0:02:52]}  Bg4 {[%clk 0:02:10]} 17. Qb2 {[%clk 0:02:45]}  Bh6 {[%clk 0:01:58]} 18. Rae1 {[%clk 0:02:41]}  Rab8 {[%clk 0:01:56]} 19. h3 {[%clk 0:02:40]}  Bd7 {[%clk 0:01:52]} 20. e4 {[%clk 0:02:05]}  b5 {[%clk 0:01:51]} 21. cxb5 {[%clk 0:02:04]}  Bxb5 {[%clk 0:01:49]} 22. Bxb5 {[%clk 0:02:05]}  Rxb5 {[%clk 0:01:47]} 23. Qc2 {[%clk 0:02:04]}  Rfb8 {[%clk 0:01:41]} 24. Rb1 {[%clk 0:02:04]}  Qa3 {[%clk 0:01:27]} 25. d6 {[%clk 0:01:50]}  Be3+ {[%clk 0:01:12]} 26. Kh1 {[%clk 0:01:48]}  exd6 {[%clk 0:01:07]} 27. exd6 {[%clk 0:01:49]}  Rxb1 {[%clk 0:00:46]} 28. Rxb1 {[%clk 0:01:50]}  Rd8 {[%clk 0:00:44]} 29. e5 {[%clk 0:01:49]}  Bf4 {[%clk 0:00:41]} 30. Qc4 {[%clk 0:01:44]}  Qe3 {[%clk 0:00:40]} 31. Rb7 {[%clk 0:01:40]}  Qc1+ {[%clk 0:00:37]} 32. Qxc1 {[%clk 0:01:40]}  Bxc1 {[%clk 0:00:37]} 33. Rxa7 {[%clk 0:01:39]}  Bf4 {[%clk 0:00:35]} 34. Rc7 {[%clk 0:01:35]}  Be3 {[%clk 0:00:31]} 35. g4 {[%clk 0:01:32]}  Kf8 {[%clk 0:00:31]} 36. Kg2 {[%clk 0:01:31]}  Ke8 {[%clk 0:00:31]} 37. a4 {[%clk 0:01:28]}  Ra8 {[%clk 0:00:31]} 38. Re7+ {[%clk 0:01:25]}  Kf8 {[%clk 0:00:29]} 39. Rc7 {[%clk 0:01:25]}  Rxa4 {[%clk 0:00:28]} 40. Rc8+ {[%clk 0:01:24]} 1-0


[Site "https://www.chess.com"]